[Event "Betsys MČR v online bleskovém šachu 2021"]
[Site "Chess.com"]
[Date "2021.04.17"]
[Round "6"]
[White "avsokol"]
[Black "AJedlicka"]
[Result "0-1"]
[WhiteElo "2376"]
[BlackElo "2213"]
[TimeControl "180+1"]
[EndTime "9:58:31 PDT"]
[Termination "Uživatel AJedlicka zvítězil na čas"]

1. e4 {[%clk 0:03:00.9]} 1... c5 {[%clk 0:02:59.3]} 2. Nf3 {[%clk 0:02:59]} 2...
d6 {[%clk 0:02:58.7]} 3. d4 {[%clk 0:02:59.4]} 3... cxd4 {[%clk 0:02:58.3]} 4.
Nxd4 {[%clk 0:02:58.9]} 4... Nf6 {[%clk 0:02:57.9]} 5. Nc3 {[%clk 0:02:59.2]}
5... a6 {[%clk 0:02:57.4]} 6. Bc4 {[%clk 0:02:59.2]} 6... e6 {[%clk 0:02:56.8]}
7. Bb3 {[%clk 0:02:59.4]} 7... Nbd7 {[%clk 0:02:56.2]} 8. Bg5 {[%clk 0:02:56.7]}
8... Nc5 {[%clk 0:02:54.7]} 9. O-O {[%clk 0:02:55.6]} 9... Be7 {[%clk
0:02:54.3]} 10. Re1 {[%clk 0:02:54]} 10... O-O {[%clk 0:02:53.8]} 11. Qf3 {[%clk
0:02:47.4]} 11... Qc7 {[%clk 0:02:41.2]} 12. Rad1 {[%clk 0:02:39.9]} 12... b5
{[%clk 0:02:36]} 13. e5 {[%clk 0:02:29.4]} 13... dxe5 {[%clk 0:02:26.9]} 14.
Bxf6 {[%clk 0:02:12.2]} 14... Bxf6 {[%clk 0:02:24]} 15. Qc6 {[%clk 0:01:18.1]}
15... Qxc6 {[%clk 0:02:19]} 16. Nxc6 {[%clk 0:01:17.9]} 16... e4 {[%clk
0:02:00]} 17. Na5 {[%clk 0:01:07.8]} 17... Bxc3 {[%clk 0:01:51.6]} 18. bxc3
{[%clk 0:01:06.4]} 18... Bd7 {[%clk 0:01:42.4]} 19. Rd6 {[%clk 0:01:05.5]} 19...
Rfc8 {[%clk 0:01:26.1]} 20. Red1 {[%clk 0:01:04.6]} 20... Be8 {[%clk 0:01:20.9]}
21. Kf1 {[%clk 0:01:04.2]} 21... Kf8 {[%clk 0:01:20.3]} 22. Ke2 {[%clk
0:01:01.9]} 22... Nxb3 {[%clk 0:01:19.5]} 23. cxb3 {[%clk 0:00:55.3]} 23... Rxc3
{[%clk 0:01:18]} 24. R1d2 {[%clk 0:00:55]} 24... g5 {[%clk 0:01:08.7]} 25. b4
{[%clk 0:00:51.8]} 25... Ke7 {[%clk 0:01:04.8]} 26. Rb6 {[%clk 0:00:51.6]} 26...
Rc7 {[%clk 0:00:54.9]} 27. Ke3 {[%clk 0:00:50.9]} 27... f5 {[%clk 0:00:54.7]}
28. Rdd6 {[%clk 0:00:48.2]} 28... Bf7 {[%clk 0:00:51.6]} 29. Nb7 {[%clk
0:00:28.2]} 29... Rxb7 {[%clk 0:00:48.7]} 30. Rxb7+ {[%clk 0:00:28.4]} 30...
Kxd6 {[%clk 0:00:48.5]} 31. Rxf7 {[%clk 0:00:28.3]} 31... h5 {[%clk 0:00:47.3]}
32. Rg7 {[%clk 0:00:27.4]} 32... g4 {[%clk 0:00:45]} 33. Rh7 {[%clk 0:00:27.4]}
33... Rc8 {[%clk 0:00:43.8]} 34. Ra7 {[%clk 0:00:24.1]} 34... Rc3+ {[%clk
0:00:41.2]} 35. Kf4 {[%clk 0:00:22.9]} 35... Rc2 {[%clk 0:00:40.7]} 36. Rxa6+
{[%clk 0:00:22.5]} 36... Kd5 {[%clk 0:00:40.2]} 37. Kg3 {[%clk 0:00:21.5]} 37...
f4+ {[%clk 0:00:37.7]} 38. Kxf4 {[%clk 0:00:21.3]} 38... Rxf2+ {[%clk
0:00:37.4]} 39. Kg3 {[%clk 0:00:21.7]} 39... Rb2 {[%clk 0:00:35.4]} 40. Rb6
{[%clk 0:00:21.7]} 40... Rxb4 {[%clk 0:00:31.9]} 41. Kf4 {[%clk 0:00:21.9]}
41... e5+ {[%clk 0:00:30.5]} 42. Ke3 {[%clk 0:00:20.5]} 42... Rb1 {[%clk
0:00:27.6]} 43. g3 {[%clk 0:00:19.5]} 43... Re1+ {[%clk 0:00:26.9]} 44. Kd2
{[%clk 0:00:18.8]} 44... Rh1 {[%clk 0:00:24.5]} 45. Ke3 {[%clk 0:00:17.5]} 45...
Rxh2 {[%clk 0:00:23.6]} 46. Rxb5+ {[%clk 0:00:17.6]} 46... Ke6 {[%clk
0:00:22.8]} 47. a4 {[%clk 0:00:17.4]} 47... Kf5 {[%clk 0:00:21.9]} 48. a5 {[%clk
0:00:16]} 48... Rg2 {[%clk 0:00:20.1]} 49. a6 {[%clk 0:00:14.1]} 49... Rxg3+
{[%clk 0:00:20]} 50. Kf2 {[%clk 0:00:13.6]} 50... Ra3 {[%clk 0:00:19.6]} 51. Rb6
{[%clk 0:00:13.2]} 51... e3+ {[%clk 0:00:19.3]} 52. Ke2 {[%clk 0:00:12.9]} 52...
g3 {[%clk 0:00:18.6]} 53. Kf3 {[%clk 0:00:12.3]} 53... h4 {[%clk 0:00:17.7]} 54.
Rh6 {[%clk 0:00:10.2]} 54... e2+ {[%clk 0:00:17.1]} 55. Kxe2 {[%clk 0:00:10.1]}
55... Kg4 {[%clk 0:00:16]} 56. Kf1 {[%clk 0:00:06.8]} 56... h3 {[%clk
0:00:15.7]} 57. Rg6+ {[%clk 0:00:06.3]} 57... Kf3 {[%clk 0:00:15.3]} 58. Rf6+
{[%clk 0:00:06.2]} 58... Ke3 {[%clk 0:00:14.8]} 0-1

[Event "Betsys MČR v online bleskovém šachu 2021"]
[Site "Chess.com"]
[Date "2021.04.17"]
[Round "6"]
[White "Jindrich4321"]
[Black "Hroch-hroch"]
[Result "0-1"]
[WhiteElo "1930"]
[BlackElo "2250"]
[TimeControl "180+1"]
[EndTime "9:58:31 PDT"]
[Termination "Uživatel Hroch-hroch zvítězil na čas"]

1. d4 {[%clk 0:03:00.9]} 1... d5 {[%clk 0:02:53.8]} 2. Nf3 {[%clk 0:03:00.1]}
2... Nf6 {[%clk 0:02:52.8]} 3. Bf4 {[%clk 0:02:59.4]} 3... e6 {[%clk 0:02:52.3]}
4. e3 {[%clk 0:02:59.2]} 4... c5 {[%clk 0:02:52.7]} 5. c3 {[%clk 0:02:58.5]}
5... Nc6 {[%clk 0:02:50.1]} 6. Bd3 {[%clk 0:02:58.2]} 6... Bd6 {[%clk
0:02:49.3]} 7. Bg3 {[%clk 0:02:51.1]} 7... O-O {[%clk 0:02:45.1]} 8. Nbd2 {[%clk
0:02:49.6]} 8... b6 {[%clk 0:02:42.7]} 9. Ne5 {[%clk 0:02:46.6]} 9... Ne7 {[%clk
0:02:42.1]} 10. f4 {[%clk 0:02:41.5]} 10... Nf5 {[%clk 0:02:41.7]} 11. Bf2
{[%clk 0:02:36.4]} 11... h5 {[%clk 0:01:57.5]} 12. Bxf5 {[%clk 0:02:25.3]} 12...
exf5 {[%clk 0:01:56]} 13. Bh4 {[%clk 0:02:24.8]} 13... g6 {[%clk 0:01:49.5]} 14.
O-O {[%clk 0:02:16.7]} 14... Bb7 {[%clk 0:01:38.3]} 15. Ndf3 {[%clk 0:02:09]}
15... Be7 {[%clk 0:01:32.7]} 16. Bxf6 {[%clk 0:01:54.7]} 16... Bxf6 {[%clk
0:01:30.5]} 17. Qe2 {[%clk 0:01:49.4]} 17... Qe7 {[%clk 0:01:30.2]} 18. Qf2
{[%clk 0:01:47.6]} 18... Kg7 {[%clk 0:01:29.3]} 19. h3 {[%clk 0:01:47]} 19...
Rh8 {[%clk 0:01:23.9]} 20. g3 {[%clk 0:01:38.4]} 20... a5 {[%clk 0:01:23.2]} 21.
Kg2 {[%clk 0:01:36.2]} 21... Qe6 {[%clk 0:01:22.7]} 22. a3 {[%clk 0:01:31.6]}
22... Be7 {[%clk 0:01:10.9]} 23. Rfe1 {[%clk 0:01:24.4]} 23... c4 {[%clk
0:01:10.6]} 24. Nd2 {[%clk 0:01:19.2]} 24... h4 {[%clk 0:01:02.3]} 25. g4 {[%clk
0:01:11.9]} 25... f6 {[%clk 0:00:56.4]} 26. gxf5 {[%clk 0:01:07]} 26... Qxf5
{[%clk 0:00:47]} 27. Ng4 {[%clk 0:01:01.5]} 27... Bd6 {[%clk 0:00:39.6]} 28. Re2
{[%clk 0:00:52.4]} 28... Rae8 {[%clk 0:00:35.5]} 29. Kh1 {[%clk 0:00:51.2]}
29... Re7 {[%clk 0:00:32]} 30. Rg1 {[%clk 0:00:50.3]} 30... Kf7 {[%clk
0:00:28.6]} 31. Qf3 {[%clk 0:00:49.3]} 31... b5 {[%clk 0:00:15.4]} 32. Rf2
{[%clk 0:00:46.1]} 32... Qd3 {[%clk 0:00:13.8]} 33. Rfg2 {[%clk 0:00:40.7]}
33... Rhe8 {[%clk 0:00:12.2]} 34. Nh6+ {[%clk 0:00:33.7]} 34... Kf8 {[%clk
0:00:10.2]} 35. Rxg6 {[%clk 0:00:31.7]} 35... Rxe3 {[%clk 0:00:10.1]} 36. Rg8+
{[%clk 0:00:28.4]} 36... Ke7 {[%clk 0:00:09.9]} 37. Rxe8+ {[%clk 0:00:26]} 37...
Kxe8 {[%clk 0:00:09.5]} 38. Qh5+ {[%clk 0:00:23.8]} 38... Kd7 {[%clk 0:00:09]}
39. Qf7+ {[%clk 0:00:13.2]} 39... Kc6 {[%clk 0:00:08.8]} 40. Rg7 {[%clk
0:00:07.5]} 40... Rxh3+ {[%clk 0:00:07]} 41. Kg2 {[%clk 0:00:07]} 41... Rg3+
{[%clk 0:00:06.1]} 42. Rxg3 {[%clk 0:00:05.7]} 42... Qxg3+ {[%clk 0:00:05.1]}
43. Kf1 {[%clk 0:00:05.4]} 43... h3 {[%clk 0:00:05.7]} 44. Qe8+ {[%clk
0:00:04.4]} 44... Kb6 {[%clk 0:00:04.5]} 45. Qd8+ {[%clk 0:00:04.3]} 45... Bc7
{[%clk 0:00:04.1]} 46. Qxf6+ {[%clk 0:00:02.9]} 46... Ka7 {[%clk 0:00:01.6]} 47.
Nf3 {[%clk 0:00:02.6]} 47... Qg2+ {[%clk 0:00:01.8]} 48. Ke1 {[%clk 0:00:03]}
48... h2 {[%clk 0:00:02.3]} 49. Nxh2 {[%clk 0:00:01.8]} 49... Qxh2 {[%clk
0:00:01.9]} 50. Nf5 {[%clk 0:00:02.1]} 50... Qg1+ {[%clk 0:00:01.8]} 51. Ke2
{[%clk 0:00:01.9]} 51... Qg2+ {[%clk 0:00:01.8]} 52. Ke3 {[%clk 0:00:02]} 52...
Qg3+ {[%clk 0:00:01.6]} 53. Ke2 {[%clk 0:00:01.9]} 53... Bxf4 {[%clk 0:00:01.7]}
0-1

[Event "Betsys MČR v online bleskovém šachu 2021"]
[Site "Chess.com"]
[Date "2021.04.17"]
[Round "6"]
[White "Vitana"]
[Black "JanBaraCZE"]
[Result "0-1"]
[WhiteElo "1799"]
[BlackElo "1599"]
[TimeControl "180+1"]
[EndTime "9:58:32 PDT"]
[Termination "Uživatel JanBaraCZE zvítězil na čas"]

1. e4 {[%clk 0:03:00.9]} 1... c5 {[%clk 0:03:00.9]} 2. c3 {[%clk 0:03:00.6]}
2... Nc6 {[%clk 0:03:01.8]} 3. d4 {[%clk 0:03:00.2]} 3... cxd4 {[%clk
0:03:01.7]} 4. cxd4 {[%clk 0:03:00.4]} 4... Nf6 {[%clk 0:03:01.2]} 5. Nc3 {[%clk
0:02:58.5]} 5... d6 {[%clk 0:03:00.2]} 6. f3 {[%clk 0:02:58.1]} 6... g6 {[%clk
0:03:00]} 7. Be3 {[%clk 0:02:58.1]} 7... Bg7 {[%clk 0:02:59.8]} 8. Bc4 {[%clk
0:02:56.8]} 8... O-O {[%clk 0:02:59.7]} 9. Nge2 {[%clk 0:02:56.3]} 9... a6
{[%clk 0:02:59.8]} 10. O-O {[%clk 0:02:55.6]} 10... b5 {[%clk 0:02:59.3]} 11.
Bd3 {[%clk 0:02:55.1]} 11... Bb7 {[%clk 0:02:58.6]} 12. d5 {[%clk 0:02:54.9]}
12... Ne5 {[%clk 0:02:58.1]} 13. a3 {[%clk 0:02:51.2]} 13... Rc8 {[%clk
0:02:56.5]} 14. Rc1 {[%clk 0:02:50.5]} 14... Nc4 {[%clk 0:02:55.6]} 15. Bxc4
{[%clk 0:02:48.7]} 15... Rxc4 {[%clk 0:02:53.1]} 16. Qd2 {[%clk 0:02:46.9]}
16... Nd7 {[%clk 0:02:48.7]} 17. Bh6 {[%clk 0:02:38.1]} 17... Rc8 {[%clk
0:02:39.9]} 18. Bxg7 {[%clk 0:02:37.4]} 18... Kxg7 {[%clk 0:02:40.8]} 19. Nd4
{[%clk 0:02:30.4]} 19... Ne5 {[%clk 0:02:26.7]} 20. f4 {[%clk 0:02:23.7]} 20...
Nc4 {[%clk 0:02:23.6]} 21. Qf2 {[%clk 0:02:23.1]} 21... Rb8 {[%clk 0:02:11.8]}
22. f5 {[%clk 0:02:20.9]} 22... Qd7 {[%clk 0:01:55.7]} 23. Kh1 {[%clk
0:02:16.6]} 23... Ne5 {[%clk 0:01:50.9]} 24. Qg3 {[%clk 0:02:10.7]} 24... Nc4
{[%clk 0:01:32.9]} 25. Rc2 {[%clk 0:02:04.8]} 25... e6 {[%clk 0:01:23.7]} 26.
fxe6 {[%clk 0:02:01.3]} 26... fxe6 {[%clk 0:01:23.1]} 27. Rcf2 {[%clk
0:01:36.5]} 27... Rxf2 {[%clk 0:01:15.1]} 28. Qxf2 {[%clk 0:01:35.7]} 28... exd5
{[%clk 0:01:10]} 29. Qf6+ {[%clk 0:01:34.3]} 29... Kg8 {[%clk 0:01:07.7]} 30.
Nxd5 {[%clk 0:01:28.2]} 30... Bxd5 {[%clk 0:01:05.2]} 31. exd5 {[%clk
0:01:26.9]} 31... Ne3 {[%clk 0:01:04.6]} 32. Re1 {[%clk 0:01:11.3]} 32... Nxd5
{[%clk 0:01:01.6]} 33. Qf3 {[%clk 0:00:59.8]} 33... Qf7 {[%clk 0:00:54.3]} 34.
Qe4 {[%clk 0:00:53.5]} 34... Nf6 {[%clk 0:00:50.3]} 35. Qc6 {[%clk 0:00:50.2]}
35... Re8 {[%clk 0:00:41.2]} 36. Rf1 {[%clk 0:00:37]} 36... Qd7 {[%clk
0:00:30.2]} 37. Qxa6 {[%clk 0:00:31.6]} 37... Ne4 {[%clk 0:00:15.1]} 38. Kg1
{[%clk 0:00:16.5]} 38... d5 {[%clk 0:00:12.8]} 39. Qxb5 {[%clk 0:00:13.6]} 39...
Qxb5 {[%clk 0:00:12.3]} 40. Nxb5 {[%clk 0:00:13.6]} 40... Nd2 {[%clk 0:00:12.4]}
41. Rd1 {[%clk 0:00:11.1]} 41... Nc4 {[%clk 0:00:11.3]} 42. Rxd5 {[%clk
0:00:09.8]} 42... Re1+ {[%clk 0:00:10.3]} 43. Kf2 {[%clk 0:00:09.3]} 43... Rb1
{[%clk 0:00:10.1]} 44. b4 {[%clk 0:00:07]} 44... Rb2+ {[%clk 0:00:07.8]} 45. Kg3
{[%clk 0:00:06.7]} 45... Ra2 {[%clk 0:00:08.2]} 46. Rc5 {[%clk 0:00:05.7]} 46...
Nxa3 {[%clk 0:00:08.1]} 47. Nxa3 {[%clk 0:00:04.8]} 47... Rxa3+ {[%clk 0:00:09]}
48. Kf2 {[%clk 0:00:03.6]} 48... Rb3 {[%clk 0:00:09.5]} 49. Rb5 {[%clk
0:00:03.2]} 49... Rb2+ {[%clk 0:00:09.5]} 50. Kg3 {[%clk 0:00:02.6]} 50... Kf7
{[%clk 0:00:10.2]} 51. h3 {[%clk 0:00:02.6]} 51... Rb3+ {[%clk 0:00:09.7]} 52.
Kg4 {[%clk 0:00:02]} 52... h5+ {[%clk 0:00:09.8]} 0-1

[Event "Betsys MČR v online bleskovém šachu 2021"]
[Site "Chess.com"]
[Date "2021.04.17"]
[Round "6"]
[White "TarantAnk"]
[Black "EXTREME_STRATEGY007"]
[Result "1-0"]
[WhiteElo "1730"]
[BlackElo "1189"]
[TimeControl "180+1"]
[EndTime "9:58:32 PDT"]
[Termination "Uživatel TarantAnk zvítězil na čas"]

1. e4 {[%clk 0:03:00]} 1... c5 {[%clk 0:02:53.3]} 2. Nf3 {[%clk 0:02:59.1]} 2...
Nc6 {[%clk 0:02:51.7]} 3. Nc3 {[%clk 0:02:58.5]} 3... e6 {[%clk 0:02:44.5]} 4.
d4 {[%clk 0:02:57.9]} 4... d5 {[%clk 0:02:22.3]} 5. exd5 {[%clk 0:02:54.7]} 5...
exd5 {[%clk 0:02:20.8]} 6. dxc5 {[%clk 0:02:54.7]} 6... Bxc5 {[%clk 0:02:19.6]}
7. Qxd5 {[%clk 0:02:54.2]} 7... Qxd5 {[%clk 0:02:13]} 8. Nxd5 {[%clk 0:02:53.6]}
8... Bb6 {[%clk 0:02:02.1]} 9. Bb5 {[%clk 0:02:47.4]} 9... Bf5 {[%clk
0:01:58.9]} 10. c3 {[%clk 0:02:41]} 10... Ne7 {[%clk 0:01:54.9]} 11. Nxe7 {[%clk
0:02:37.2]} 11... Kxe7 {[%clk 0:01:53.4]} 12. O-O {[%clk 0:02:30.7]} 12... Rhd8
{[%clk 0:01:45.9]} 13. Re1+ {[%clk 0:02:24.3]} 13... Kf8 {[%clk 0:01:45]} 14.
Bf4 {[%clk 0:02:14.6]} 14... Bg4 {[%clk 0:01:32.6]} 15. Bxc6 {[%clk 0:02:12.3]}
15... bxc6 {[%clk 0:01:31.6]} 16. Ne5 {[%clk 0:02:09.8]} 16... Bd7 {[%clk
0:01:26]} 17. Rad1 {[%clk 0:02:02.8]} 17... Be6 {[%clk 0:01:01.4]} 18. Nxc6
{[%clk 0:01:55.4]} 18... Rxd1 {[%clk 0:00:52.7]} 19. Rxd1 {[%clk 0:01:51.9]}
19... Bxa2 {[%clk 0:00:52.5]} 20. Bd6+ {[%clk 0:01:24.8]} 20... Kg8 {[%clk
0:00:50.3]} 21. Ne7+ {[%clk 0:01:21.9]} 21... Kh8 {[%clk 0:00:48.6]} 22. Nf5
{[%clk 0:01:15]} 22... g6 {[%clk 0:00:44]} 23. Nd4 {[%clk 0:01:13.5]} 23... Bxd4
{[%clk 0:00:38.7]} 24. Rxd4 {[%clk 0:01:12.7]} 24... Kg7 {[%clk 0:00:34.6]} 25.
f3 {[%clk 0:01:11.1]} 25... f6 {[%clk 0:00:33.3]} 26. Ba3 {[%clk 0:01:08.8]}
26... Bf7 {[%clk 0:00:30.7]} 27. Kf2 {[%clk 0:01:08.6]} 27... Re8 {[%clk
0:00:26.7]} 28. Rd7 {[%clk 0:01:05.5]} 28... Kg8 {[%clk 0:00:21.6]} 29. Rxa7
{[%clk 0:01:04]} 29... Bc4 {[%clk 0:00:19.5]} 30. Re7 {[%clk 0:00:57.1]} 30...
Rxe7 {[%clk 0:00:18.2]} 31. Bxe7 {[%clk 0:00:57]} 31... Kf7 {[%clk 0:00:17.7]}
32. Bc5 {[%clk 0:00:56.8]} 32... Ke6 {[%clk 0:00:17.8]} 33. Ke3 {[%clk
0:00:57.2]} 33... Kd5 {[%clk 0:00:17.7]} 34. Bd4 {[%clk 0:00:57.1]} 34... f5
{[%clk 0:00:15.9]} 35. g4 {[%clk 0:00:55.6]} 35... fxg4 {[%clk 0:00:14.1]} 36.
fxg4 {[%clk 0:00:55.6]} 36... g5 {[%clk 0:00:12.5]} 37. Bf6 {[%clk 0:00:51.7]}
37... h6 {[%clk 0:00:12]} 38. Bg7 {[%clk 0:00:51.5]} 38... Ke6 {[%clk 0:00:08]}
39. Bxh6 {[%clk 0:00:50.6]} 39... Kf6 {[%clk 0:00:08.3]} 40. Bf8 {[%clk
0:00:48.1]} 40... Be6 {[%clk 0:00:07.7]} 41. Kf3 {[%clk 0:00:46.2]} 41... Bd5+
{[%clk 0:00:07]} 42. Kg3 {[%clk 0:00:46.3]} 42... Bb3 {[%clk 0:00:04.8]} 43. Bc5
{[%clk 0:00:44.2]} 43... Bc4 {[%clk 0:00:03.3]} 44. Bd4+ {[%clk 0:00:44]} 44...
Kg6 {[%clk 0:00:02.7]} 45. b4 {[%clk 0:00:44.5]} 45... Bb5 {[%clk 0:00:02.1]}
46. h4 {[%clk 0:00:42.7]} 46... Bc4 {[%clk 0:00:01.6]} 47. h5+ {[%clk 0:00:40]}
47... Kh6 {[%clk 0:00:01.9]} 48. Bf6 {[%clk 0:00:37.1]} 48... Bb5 {[%clk
0:00:01.6]} 49. Kf2 {[%clk 0:00:34.3]} 49... Bc4 {[%clk 0:00:01.3]} 50. Ke3
{[%clk 0:00:34.2]} 50... Bb5 {[%clk 0:00:01.3]} 51. Ke4 {[%clk 0:00:34.3]} 51...
Bc4 {[%clk 0:00:01.7]} 52. Kd4 {[%clk 0:00:27.2]} 52... Bb5 {[%clk 0:00:01.5]}
53. c4 {[%clk 0:00:27]} 53... Bd7 {[%clk 0:00:01.3]} 54. b5 {[%clk 0:00:23.5]}
54... Bxg4 {[%clk 0:00:01.3]} 55. c5 {[%clk 0:00:23.1]} 55... Kxh5 {[%clk
0:00:02.2]} 56. c6 {[%clk 0:00:22]} 56... Bc8 {[%clk 0:00:01.8]} 57. b6 {[%clk
0:00:21.5]} 57... g4 {[%clk 0:00:01.8]} 58. b7 {[%clk 0:00:21.1]} 58... Bxb7
{[%clk 0:00:01.4]} 59. cxb7 {[%clk 0:00:21.2]} 59... g3 {[%clk 0:00:01.7]} 60.
Be5 {[%clk 0:00:19.9]} 60... g2 {[%clk 0:00:01.6]} 61. Bh2 {[%clk 0:00:20.2]}
61... Kg4 {[%clk 0:00:01.1]} 62. Bg1 {[%clk 0:00:21.1]} 1-0

[Event "Betsys MČR v online bleskovém šachu 2021"]
[Site "Chess.com"]
[Date "2021.04.17"]
[Round "6"]
[White "czlolcz"]
[Black "Devasales"]
[Result "1-0"]
[WhiteElo "2187"]
[BlackElo "1832"]
[TimeControl "180+1"]
[EndTime "9:58:35 PDT"]
[Termination "Uživatel czlolcz zvítězil po vzdání soupeře"]

1. d4 {[%clk 0:02:19.2]} 1... d5 {[%clk 0:02:58.5]} 2. c4 {[%clk 0:02:09.6]}
2... e6 {[%clk 0:02:55.8]} 3. Nc3 {[%clk 0:02:09]} 3... Nf6 {[%clk 0:02:54.3]}
4. Bg5 {[%clk 0:02:07.2]} 4... Be7 {[%clk 0:02:47.2]} 5. e3 {[%clk 0:02:05.9]}
5... O-O {[%clk 0:02:44.5]} 6. Qc2 {[%clk 0:02:02.8]} 6... c6 {[%clk 0:02:39.6]}
7. Nf3 {[%clk 0:02:00.2]} 7... Nbd7 {[%clk 0:02:38.7]} 8. O-O-O {[%clk
0:01:59.5]} 8... dxc4 {[%clk 0:02:32.6]} 9. Bxc4 {[%clk 0:01:57.4]} 9... b5
{[%clk 0:02:31.9]} 10. Bd3 {[%clk 0:01:58]} 10... a5 {[%clk 0:02:30.5]} 11. Kb1
{[%clk 0:01:57.1]} 11... Qb6 {[%clk 0:02:21.9]} 12. Bxh7+ {[%clk 0:01:49.6]}
12... Nxh7 {[%clk 0:02:13.8]} 13. Bxe7 {[%clk 0:01:49]} 13... Re8 {[%clk
0:02:12.5]} 14. Bd6 {[%clk 0:01:41.5]} 14... a4 {[%clk 0:02:03.3]} 15. h4 {[%clk
0:01:28]} 15... b4 {[%clk 0:01:55.2]} 16. Nxa4 {[%clk 0:01:22.1]} 16... Qa5
{[%clk 0:01:46.4]} 17. b3 {[%clk 0:01:20.5]} 17... Bb7 {[%clk 0:01:37.8]} 18.
Bc5 {[%clk 0:01:11.8]} 18... Nhf6 {[%clk 0:01:33.1]} 19. h5 {[%clk 0:01:03.2]}
19... Ba6 {[%clk 0:01:10.5]} 20. Ng5 {[%clk 0:00:46]} 20... Bb5 {[%clk
0:01:04.1]} 21. e4 {[%clk 0:00:18]} 21... Bxa4 {[%clk 0:00:55.9]} 22. bxa4
{[%clk 0:00:10.8]} 22... Qxa4 {[%clk 0:00:49.1]} 23. Qxa4 {[%clk 0:00:11.7]}
23... Rxa4 {[%clk 0:00:48.4]} 24. Rd2 {[%clk 0:00:11.2]} 24... Rea8 {[%clk
0:00:46.7]} 25. Rh3 {[%clk 0:00:10.6]} 25... Nxc5 {[%clk 0:00:46]} 26. dxc5
{[%clk 0:00:10.5]} 26... Ng4 {[%clk 0:00:42.3]} 27. Rf3 {[%clk 0:00:09.5]} 27...
b3 {[%clk 0:00:39.2]} 28. Rxb3 {[%clk 0:00:08.9]} 28... f6 {[%clk 0:00:37.6]}
29. Nxe6 {[%clk 0:00:08.5]} 29... Kf7 {[%clk 0:00:37.8]} 30. Nd4 {[%clk
0:00:07]} 30... Nxf2 {[%clk 0:00:35.2]} 31. Rxf2 {[%clk 0:00:03.8]} 31... Rxd4
{[%clk 0:00:34.6]} 32. Re2 {[%clk 0:00:04.2]} 32... Rad8 {[%clk 0:00:31.8]} 33.
Kb2 {[%clk 0:00:04.1]} 33... Rd2+ {[%clk 0:00:31]} 34. Rxd2 {[%clk 0:00:04.6]}
34... Rxd2+ {[%clk 0:00:30.5]} 35. Kc3 {[%clk 0:00:05.1]} 35... Rxg2 {[%clk
0:00:30.5]} 36. Rb2 {[%clk 0:00:05.2]} 36... Rg3+ {[%clk 0:00:29.1]} 37. Kd4
{[%clk 0:00:04.1]} 37... Ra3 {[%clk 0:00:28.4]} 38. Rh2 {[%clk 0:00:03.6]} 38...
Kg8 {[%clk 0:00:26.3]} 39. Kc4 {[%clk 0:00:03.8]} 39... Kh7 {[%clk 0:00:25.9]}
40. Kb4 {[%clk 0:00:02.7]} 40... Re3 {[%clk 0:00:25.5]} 41. Rh4 {[%clk
0:00:02.6]} 41... Re2 {[%clk 0:00:24.6]} 42. a4 {[%clk 0:00:03]} 42... Kg8
{[%clk 0:00:23.8]} 43. Ka5 {[%clk 0:00:03.3]} 43... Kf7 {[%clk 0:00:24.2]} 44.
Kb6 {[%clk 0:00:03.8]} 44... Ke7 {[%clk 0:00:23.6]} 45. a5 {[%clk 0:00:04.3]}
45... Kd7 {[%clk 0:00:21.6]} 46. a6 {[%clk 0:00:04.7]} 46... Kc8 {[%clk
0:00:21.9]} 47. Ka7 {[%clk 0:00:04.9]} 47... Rb2 {[%clk 0:00:19.7]} 48. Rg4
{[%clk 0:00:05.2]} 48... Rc2 {[%clk 0:00:15.2]} 49. Rxg7 {[%clk 0:00:04.9]}
49... Rxc5 {[%clk 0:00:15]} 50. Kb6 {[%clk 0:00:05.3]} 50... Rc1 {[%clk
0:00:12.8]} 51. Rg8+ {[%clk 0:00:05.1]} 51... Kd7 {[%clk 0:00:13]} 52. Rg7+
{[%clk 0:00:05]} 52... Kd6 {[%clk 0:00:13.3]} 53. a7 {[%clk 0:00:05.4]} 53...
Rb1+ {[%clk 0:00:13.5]} 54. Ka6 {[%clk 0:00:05.3]} 54... Ra1+ {[%clk 0:00:13.4]}
55. Kb7 {[%clk 0:00:05.7]} 55... Rb1+ {[%clk 0:00:13.6]} 56. Kc8 {[%clk
0:00:06.1]} 56... Ra1 {[%clk 0:00:12.5]} 57. Kb8 {[%clk 0:00:06.6]} 57... Rb1+
{[%clk 0:00:12.4]} 58. Rb7 {[%clk 0:00:06.8]} 58... Rxb7+ {[%clk 0:00:10]} 59.
Kxb7 {[%clk 0:00:07.7]} 1-0